[Event "December 5 Early 2023"]
[Site "https://www.chess.com"]
[Date "2023.12.05"]
[Round "3"]
[White "Henriquez Villagra, Cristobal"]
[Black "Williams, Simon K"]
[Result "1/2-1/2"]
[Board "21"]
[TimeControl "180+1"]
[WhiteFideId "3409350"]
[BlackFideId "404454"]
[WhiteElo "2960"]
[BlackElo "2699"]
[WhiteTeam "CHI"]
[BlackTeam "ENG"]
[WhiteClock "0:00:09"]
[BlackClock "0:00:16"]

1. e4 {[%clk 0:02:52]}  c5 {[%clk 0:02:55]} 2. Nc3 {[%clk 0:02:51]}  Nc6 {[%clk 0:02:53]} 3. g3 {[%clk 0:02:52]}  g6 {[%clk 0:02:53]} 4. Bg2 {[%clk 0:02:52]}  Bg7 {[%clk 0:02:52]} 5. f4 {[%clk 0:02:53]}  d6 {[%clk 0:02:52]} 6. d3 {[%clk 0:02:53]}  e5 {[%clk 0:02:51]} 7. Nce2 {[%clk 0:02:50]}  Nge7 {[%clk 0:02:51]} 8. Nh3 {[%clk 0:02:50]}  h5 {[%clk 0:02:50]} 9. Be3 {[%clk 0:02:33]}  h4 {[%clk 0:02:49]} 10. c3 {[%clk 0:02:29]}  Bg4 {[%clk 0:02:36]} 11. Nf2 {[%clk 0:02:26]}  h3 {[%clk 0:02:36]} 12. Bf1 {[%clk 0:02:21]}  Bf3 {[%clk 0:02:35]} 13. Rg1 {[%clk 0:02:21]}  d5 {[%clk 0:02:11]} 14. Bxc5 {[%clk 0:02:12]}  Qc7 {[%clk 0:01:57]} 15. Qa4 {[%clk 0:02:07]}  dxe4 {[%clk 0:01:49]} 16. Nxe4 {[%clk 0:02:04]}  O-O-O {[%clk 0:01:45]} 17. O-O-O {[%clk 0:01:05]}  exf4 {[%clk 0:01:43]} 18. gxf4 {[%clk 0:01:00]}  Bxe2 {[%clk 0:01:35]} 19. Bxe2 {[%clk 0:00:59]}  Qxf4+ {[%clk 0:01:34]} 20. Kb1 {[%clk 0:00:58]}  Qxh2 {[%clk 0:01:34]} 21. Bf3 {[%clk 0:00:57]}  Kb8 {[%clk 0:01:22]} 22. Bh1 {[%clk 0:00:52]}  Qc7 {[%clk 0:01:19]} 23. d4 {[%clk 0:00:52]}  h2 {[%clk 0:01:17]} 24. Rgf1 {[%clk 0:00:51]}  f5 {[%clk 0:01:16]} 25. Ng5 {[%clk 0:00:51]}  Nd5 {[%clk 0:01:00]} 26. Ne6 {[%clk 0:00:42]}  Qf7 {[%clk 0:00:55]} 27. Nxd8 {[%clk 0:00:38]}  Rxd8 {[%clk 0:00:55]} 28. Qb3 {[%clk 0:00:36]}  Na5 {[%clk 0:00:52]} 29. Qb5 {[%clk 0:00:36]}  b6 {[%clk 0:00:49]} 30. Rde1 {[%clk 0:00:33]}  Nb7 {[%clk 0:00:47]} 31. Ba3 {[%clk 0:00:31]}  Qd7 {[%clk 0:00:36]} 32. Qe2 {[%clk 0:00:24]}  f4 {[%clk 0:00:26]} 33. Qxh2 {[%clk 0:00:24]}  g5 {[%clk 0:00:26]} 34. Qg2 {[%clk 0:00:24]}  Ne3 {[%clk 0:00:23]} 35. Qxg5 {[%clk 0:00:22]}  Nxf1 {[%clk 0:00:22]} 36. Qxf4+ {[%clk 0:00:23]}  Qc7 {[%clk 0:00:22]} 37. Qxc7+ {[%clk 0:00:22]}  Kxc7 {[%clk 0:00:23]} 38. Rxf1 {[%clk 0:00:21]}  Nd6 {[%clk 0:00:23]} 39. Bg2 {[%clk 0:00:18]}  Nc4 {[%clk 0:00:23]} 40. Rf7+ {[%clk 0:00:16]}  Rd7 {[%clk 0:00:23]} 41. Rxd7+ {[%clk 0:00:13]}  Kxd7 {[%clk 0:00:24]} 42. Bb4 {[%clk 0:00:13]}  a5 {[%clk 0:00:23]} 43. Bh3+ {[%clk 0:00:10]}  Kd8 {[%clk 0:00:18]} 44. Ba3 {[%clk 0:00:03]}  Nxa3+ {[%clk 0:00:18]} 45. bxa3 {[%clk 0:00:04]}  Kc7 {[%clk 0:00:19]} 46. Bf1 {[%clk 0:00:04]}  Kd6 {[%clk 0:00:19]} 47. a4 {[%clk 0:00:04]}  Bf8 {[%clk 0:00:17]} 48. Kc2 {[%clk 0:00:04]}  Kc7 {[%clk 0:00:17]} 49. Kd3 {[%clk 0:00:05]}  Bd6 {[%clk 0:00:17]} 50. Kc4 {[%clk 0:00:06]}  Bf4 {[%clk 0:00:17]} 51. Be2 {[%clk 0:00:05]}  Bd2 {[%clk 0:00:18]} 52. Kd3 {[%clk 0:00:06]}  Be1 {[%clk 0:00:18]} 53. Bg4 {[%clk 0:00:06]}  Kd6 {[%clk 0:00:17]} 54. c4 {[%clk 0:00:07]}  Bb4 {[%clk 0:00:17]} 55. Bh5 {[%clk 0:00:08]}  Ba3 {[%clk 0:00:17]} 56. Be8 {[%clk 0:00:08]}  Bb4 {[%clk 0:00:18]} 57. Bb5 {[%clk 0:00:09]}  Ba3 {[%clk 0:00:18]} 58. Kc3 {[%clk 0:00:09]}  Bb4+ {[%clk 0:00:18]} 59. Kb3 {[%clk 0:00:10]}  Kc7 {[%clk 0:00:18]} 60. a3 {[%clk 0:00:10]}  Be7 {[%clk 0:00:18]} 61. Be8 {[%clk 0:00:10]}  Bf8 {[%clk 0:00:18]} 62. Bg6 {[%clk 0:00:08]}  Be7 {[%clk 0:00:19]} 63. Be4 {[%clk 0:00:08]}  Bf8 {[%clk 0:00:19]} 64. c5 {[%clk 0:00:07]}  bxc5 {[%clk 0:00:19]} 65. Kc4 {[%clk 0:00:07]}  cxd4 {[%clk 0:00:19]} 66. Kxd4 {[%clk 0:00:08]}  Bxa3 {[%clk 0:00:19]} 67. Bh7 {[%clk 0:00:08]}  Bb4 {[%clk 0:00:16]} 68. Bg8 {[%clk 0:00:09]} 1/2-1/2

[Event "December 5 Early 2023"]
[Site "https://www.chess.com"]
[Date "2023.12.05"]
[Round "3"]
[White "Shimanov, Aleksandr"]
[Black "Csonka, Balazs"]
[Result "1-0"]
[Board "22"]
[TimeControl "180+1"]
[WhiteFideId "4198603"]
[BlackFideId "742910"]
[WhiteElo "2958"]
[BlackElo "2694"]
[WhiteTeam "RUS"]
[BlackTeam "HUN"]
[WhiteClock "0:00:29"]
[BlackClock "0:00:02"]

1. d4 {[%clk 0:03:00]}  d5 {[%clk 0:02:59]} 2. Bg5 {[%clk 0:02:57]}  h6 {[%clk 0:02:54]} 3. Bh4 {[%clk 0:02:57]}  Bf5 {[%clk 0:02:49]} 4. e3 {[%clk 0:02:49]}  Nd7 {[%clk 0:02:49]} 5. c4 {[%clk 0:02:49]}  c6 {[%clk 0:02:29]} 6. Nc3 {[%clk 0:02:47]}  Ngf6 {[%clk 0:02:27]} 7. Nf3 {[%clk 0:02:46]}  e6 {[%clk 0:02:26]} 8. Be2 {[%clk 0:02:43]}  Be7 {[%clk 0:02:25]} 9. O-O {[%clk 0:02:43]}  O-O {[%clk 0:02:26]} 10. a3 {[%clk 0:02:37]}  Ne4 {[%clk 0:02:15]} 11. Bxe7 {[%clk 0:02:31]}  Qxe7 {[%clk 0:02:16]} 12. Rc1 {[%clk 0:02:30]}  Bh7 {[%clk 0:01:59]} 13. Nd2 {[%clk 0:02:10]}  Ndf6 {[%clk 0:01:43]} 14. Nf3 {[%clk 0:01:56]}  Rfd8 {[%clk 0:01:36]} 15. Qb3 {[%clk 0:01:52]}  Rab8 {[%clk 0:01:26]} 16. Rfd1 {[%clk 0:01:50]}  Ng4 {[%clk 0:01:12]} 17. Nxe4 {[%clk 0:01:46]}  dxe4 {[%clk 0:01:05]} 18. Nd2 {[%clk 0:01:43]}  Qh4 {[%clk 0:01:05]} 19. Bxg4 {[%clk 0:01:42]}  Qxg4 {[%clk 0:01:06]} 20. Qc3 {[%clk 0:01:35]}  Qg5 {[%clk 0:00:56]} 21. b4 {[%clk 0:01:33]}  h5 {[%clk 0:00:55]} 22. a4 {[%clk 0:01:31]}  h4 {[%clk 0:00:52]} 23. h3 {[%clk 0:01:31]}  Bf5 {[%clk 0:00:43]} 24. Kh1 {[%clk 0:01:30]}  Rd7 {[%clk 0:00:35]} 25. b5 {[%clk 0:01:30]}  Rbd8 {[%clk 0:00:29]} 26. bxc6 {[%clk 0:01:07]}  bxc6 {[%clk 0:00:30]} 27. Qa5 {[%clk 0:01:05]}  Rb8 {[%clk 0:00:22]} 28. Rb1 {[%clk 0:01:03]}  Rdb7 {[%clk 0:00:17]} 29. Qe5 {[%clk 0:00:54]}  Rxb1 {[%clk 0:00:15]} 30. Rxb1 {[%clk 0:00:55]}  Rxb1+ {[%clk 0:00:14]} 31. Nxb1 {[%clk 0:00:56]}  Qh5 {[%clk 0:00:11]} 32. Nc3 {[%clk 0:00:54]}  Kh7 {[%clk 0:00:03]} 33. a5 {[%clk 0:00:49]}  Qg5 {[%clk 0:00:03]} 34. Nxe4 {[%clk 0:00:43]}  Qd8 {[%clk 0:00:02]} 35. Nd6 {[%clk 0:00:42]}  f6 {[%clk 0:00:02]} 36. Qc5 {[%clk 0:00:42]}  Bg6 {[%clk 0:00:02]} 37. a6 {[%clk 0:00:38]}  Qb8 {[%clk 0:00:03]} 38. Nb7 {[%clk 0:00:37]}  e5 {[%clk 0:00:03]} 39. d5 {[%clk 0:00:35]}  cxd5 {[%clk 0:00:04]} 40. cxd5 {[%clk 0:00:36]}  Be4 {[%clk 0:00:04]} 41. f3 {[%clk 0:00:30]}  Bf5 {[%clk 0:00:03]} 42. e4 {[%clk 0:00:30]}  Bc8 {[%clk 0:00:04]} 43. Qc6 {[%clk 0:00:29]}  Kh6 {[%clk 0:00:03]} 44. d6 {[%clk 0:00:29]}  Bxb7 {[%clk 0:00:03]} 45. axb7 {[%clk 0:00:28]}  a5 {[%clk 0:00:02]} 46. Qc7 {[%clk 0:00:29]} 1-0

[Event "December 5 Early 2023"]
[Site "https://www.chess.com"]
[Date "2023.12.05"]
[Round "3"]
[White "Nigalidze, Gaioz"]
[Black "Yilmaz, Mustafa"]
[Result "0-1"]
[Board "23"]
[TimeControl "180+1"]
[WhiteFideId "13603078"]
[BlackFideId "6302718"]
[WhiteElo "2692"]
[BlackElo "2945"]
[WhiteTeam "GEO"]
[BlackTeam "TUR"]
[WhiteClock "0:01:51"]
[BlackClock "0:01:19"]

1. e4 {[%clk 0:03:00]}  c5 {[%clk 0:02:53]} 2. Nf3 {[%clk 0:02:59]}  d6 {[%clk 0:02:54]} 3. Bb5+ {[%clk 0:02:58]}  Bd7 {[%clk 0:02:53]} 4. Bxd7+ {[%clk 0:02:57]}  Qxd7 {[%clk 0:02:54]} 5. d4 {[%clk 0:02:57]}  cxd4 {[%clk 0:02:48]} 6. Qxd4 {[%clk 0:02:53]}  Nc6 {[%clk 0:02:48]} 7. Qd3 {[%clk 0:02:52]}  g6 {[%clk 0:02:47]} 8. c4 {[%clk 0:02:51]}  Bg7 {[%clk 0:02:33]} 9. Nc3 {[%clk 0:02:50]}  Nb4 {[%clk 0:02:32]} 10. Qd2 {[%clk 0:02:46]}  Rc8 {[%clk 0:02:30]} 11. b3 {[%clk 0:02:45]}  b5 {[%clk 0:02:21]} 12. O-O {[%clk 0:02:24]}  bxc4 {[%clk 0:02:20]} 13. bxc4 {[%clk 0:02:24]}  Rxc4 {[%clk 0:02:16]} 14. Bb2 {[%clk 0:02:23]}  Nf6 {[%clk 0:02:09]} 15. e5 {[%clk 0:02:14]}  dxe5 {[%clk 0:02:08]} 16. Qe2 {[%clk 0:02:14]}  Qd3 {[%clk 0:01:39]} 17. Qxe5 {[%clk 0:02:11]}  Nc6 {[%clk 0:01:25]} 18. Qb5 {[%clk 0:02:04]}  Rxc3 {[%clk 0:01:24]} 19. Qa4 {[%clk 0:01:51]}  Qc4 {[%clk 0:01:19]} 0-1

[Event "December 5 Early 2023"]
[Site "https://www.chess.com"]
[Date "2023.12.05"]
[Round "3"]
[White "Grigoriants, Sergey"]
[Black "Volkov, Maksim"]
[Result "0-1"]
[Board "24"]
[TimeControl "180+1"]
[WhiteFideId "4130804"]
[BlackFideId "54123070"]
[WhiteElo "2942"]
[BlackElo "2681"]
[WhiteTeam "HUN"]
[BlackTeam "RUS"]
[WhiteClock "0:00:00"]
[BlackClock "0:00:07"]

1. d4 {[%clk 0:02:47]}  d5 {[%clk 0:02:59]} 2. c4 {[%clk 0:02:46]}  e6 {[%clk 0:03:00]} 3. Nc3 {[%clk 0:02:46]}  c6 {[%clk 0:03:00]} 4. e3 {[%clk 0:02:45]}  Nf6 {[%clk 0:02:59]} 5. Nf3 {[%clk 0:02:45]}  Nbd7 {[%clk 0:02:59]} 6. Qc2 {[%clk 0:02:43]}  Bd6 {[%clk 0:02:59]} 7. g4 {[%clk 0:02:44]}  h6 {[%clk 0:02:50]} 8. h3 {[%clk 0:02:42]}  e5 {[%clk 0:02:31]} 9. Bd2 {[%clk 0:02:25]}  e4 {[%clk 0:01:52]} 10. Ng1 {[%clk 0:02:16]}  a6 {[%clk 0:01:44]} 11. c5 {[%clk 0:02:12]}  Bc7 {[%clk 0:01:42]} 12. O-O-O {[%clk 0:02:13]}  b6 {[%clk 0:01:29]} 13. cxb6 {[%clk 0:02:10]}  Nxb6 {[%clk 0:01:30]} 14. f3 {[%clk 0:02:10]}  Qe7 {[%clk 0:01:19]} 15. fxe4 {[%clk 0:02:01]}  dxe4 {[%clk 0:01:20]} 16. Bg2 {[%clk 0:01:57]}  O-O {[%clk 0:00:55]} 17. Nxe4 {[%clk 0:01:53]}  Nxe4 {[%clk 0:00:55]} 18. Bxe4 {[%clk 0:01:54]}  Nd5 {[%clk 0:00:56]} 19. Ne2 {[%clk 0:01:33]}  Be6 {[%clk 0:00:42]} 20. Kb1 {[%clk 0:01:09]}  Rab8 {[%clk 0:00:42]} 21. Ka1 {[%clk 0:01:07]}  Rfc8 {[%clk 0:00:39]} 22. Rc1 {[%clk 0:01:03]}  Bd6 {[%clk 0:00:37]} 23. Nf4 {[%clk 0:00:49]}  Nxf4 {[%clk 0:00:26]} 24. exf4 {[%clk 0:00:50]}  c5 {[%clk 0:00:24]} 25. d5 {[%clk 0:00:46]}  Bd7 {[%clk 0:00:24]} 26. Rhe1 {[%clk 0:00:26]}  Qh4 {[%clk 0:00:24]} 27. Qc3 {[%clk 0:00:15]}  Re8 {[%clk 0:00:22]} 28. Bb1 {[%clk 0:00:10]}  Be7 {[%clk 0:00:19]} 29. Qd3 {[%clk 0:00:06]}  g6 {[%clk 0:00:17]} 30. f5 {[%clk 0:00:06]}  Bf6 {[%clk 0:00:16]} 31. Bc3 {[%clk 0:00:05]}  Rxe1 {[%clk 0:00:15]} 32. Bxf6 {[%clk 0:00:05]}  Qxf6 {[%clk 0:00:11]} 33. Qd2 {[%clk 0:00:05]}  Rxc1 {[%clk 0:00:11]} 34. Qxc1 {[%clk 0:00:06]}  gxf5 {[%clk 0:00:11]} 35. gxf5 {[%clk 0:00:05]}  Bxf5 {[%clk 0:00:11]} 36. Qg1+ {[%clk 0:00:02]}  Bg6 {[%clk 0:00:11]} 37. Qh2 {[%clk 0:00:01]}  Rb6 {[%clk 0:00:08]} 38. d6 {[%clk 0:00:00]}  Rxd6 {[%clk 0:00:07]} 0-1

[Event "December 5 Early 2023"]
[Site "https://www.chess.com"]
[Date "2023.12.05"]
[Round "3"]
[White "Maksimovic, Bojan"]
[Black "Nagare Kaivalya Sandip"]
[Result "1-0"]
[Board "26"]
[TimeControl "180+1"]
[WhiteFideId "14408120"]
[BlackFideId "25957929"]
[WhiteElo "2928"]
[BlackElo "2669"]
[WhiteTeam "BIH"]
[BlackTeam "IND"]
[WhiteClock "0:00:17"]
[BlackClock "0:00:24"]

1. Nf3 {[%clk 0:02:45]}  Nf6 {[%clk 0:02:59]} 2. g3 {[%clk 0:02:45]}  g6 {[%clk 0:02:59]} 3. Bg2 {[%clk 0:02:46]}  Bg7 {[%clk 0:02:58]} 4. b3 {[%clk 0:02:46]}  O-O {[%clk 0:02:58]} 5. Bb2 {[%clk 0:02:46]}  b6 {[%clk 0:02:56]} 6. O-O {[%clk 0:02:46]}  Bb7 {[%clk 0:02:56]} 7. d3 {[%clk 0:02:46]}  d6 {[%clk 0:02:56]} 8. Nbd2 {[%clk 0:02:43]}  Nbd7 {[%clk 0:02:57]} 9. c4 {[%clk 0:02:43]}  a5 {[%clk 0:02:45]} 10. a3 {[%clk 0:02:42]}  e5 {[%clk 0:02:42]} 11. Qc2 {[%clk 0:02:40]}  Rb8 {[%clk 0:02:40]} 12. b4 {[%clk 0:02:39]}  Qe7 {[%clk 0:02:27]} 13. bxa5 {[%clk 0:02:33]}  bxa5 {[%clk 0:02:24]} 14. Bc3 {[%clk 0:02:33]}  e4 {[%clk 0:02:22]} 15. dxe4 {[%clk 0:02:32]}  Nxe4 {[%clk 0:02:23]} 16. Bxg7 {[%clk 0:02:31]}  Kxg7 {[%clk 0:02:22]} 17. Nxe4 {[%clk 0:02:29]}  Qxe4 {[%clk 0:02:15]} 18. Qc3+ {[%clk 0:02:25]}  Nf6 {[%clk 0:02:09]} 19. Rfe1 {[%clk 0:01:59]}  a4 {[%clk 0:02:01]} 20. c5 {[%clk 0:01:40]}  Qe7 {[%clk 0:01:47]} 21. c6 {[%clk 0:01:26]}  Bc8 {[%clk 0:01:41]} 22. Nd4 {[%clk 0:01:23]}  Kg8 {[%clk 0:01:37]} 23. Rab1 {[%clk 0:01:20]}  Be6 {[%clk 0:01:37]} 24. Rb7 {[%clk 0:01:19]}  Bd5 {[%clk 0:01:32]} 25. e4 {[%clk 0:01:04]}  Be6 {[%clk 0:01:23]} 26. Nb5 {[%clk 0:00:52]}  Rxb7 {[%clk 0:01:22]} 27. cxb7 {[%clk 0:00:53]}  c5 {[%clk 0:01:22]} 28. Nxd6 {[%clk 0:00:52]}  Rb8 {[%clk 0:01:03]} 29. Qxc5 {[%clk 0:00:37]}  Nd7 {[%clk 0:00:57]} 30. Qc7 {[%clk 0:00:36]}  Qd8 {[%clk 0:00:49]} 31. Qxd8+ {[%clk 0:00:34]}  Rxd8 {[%clk 0:00:50]} 32. e5 {[%clk 0:00:34]}  Nb8 {[%clk 0:00:49]} 33. Rc1 {[%clk 0:00:31]}  Kf8 {[%clk 0:00:49]} 34. f4 {[%clk 0:00:27]}  Ke7 {[%clk 0:00:48]} 35. Kf2 {[%clk 0:00:25]}  f6 {[%clk 0:00:41]} 36. Ke3 {[%clk 0:00:25]}  fxe5 {[%clk 0:00:41]} 37. fxe5 {[%clk 0:00:26]}  h5 {[%clk 0:00:40]} 38. h4 {[%clk 0:00:26]}  Nd7 {[%clk 0:00:39]} 39. Rc8 {[%clk 0:00:23]}  Nb8 {[%clk 0:00:36]} 40. Rxd8 {[%clk 0:00:20]}  Kxd8 {[%clk 0:00:36]} 41. Be4 {[%clk 0:00:21]}  Kc7 {[%clk 0:00:35]} 42. Bxg6 {[%clk 0:00:20]}  Nc6 {[%clk 0:00:35]} 43. Kf4 {[%clk 0:00:17]}  Nd4 {[%clk 0:00:33]} 44. Bxh5 {[%clk 0:00:17]}  Nc2 {[%clk 0:00:33]} 45. Bd1 {[%clk 0:00:17]}  Nxa3 {[%clk 0:00:32]} 46. Bxa4 {[%clk 0:00:17]}  Nb1 {[%clk 0:00:32]} 47. h5 {[%clk 0:00:17]}  Nc3 {[%clk 0:00:32]} 48. Bc2 {[%clk 0:00:16]}  Nd5+ {[%clk 0:00:31]} 49. Kg5 {[%clk 0:00:17]}  Ne3 {[%clk 0:00:31]} 50. Be4 {[%clk 0:00:16]}  Nf1 {[%clk 0:00:31]} 51. g4 {[%clk 0:00:15]}  Ne3 {[%clk 0:00:30]} 52. Bf5 {[%clk 0:00:16]}  Bd5 {[%clk 0:00:26]} 53. h6 {[%clk 0:00:16]}  Bg8 {[%clk 0:00:26]} 54. Kf6 {[%clk 0:00:17]}  Nd5+ {[%clk 0:00:25]} 55. Kg7 {[%clk 0:00:17]}  Ne7 {[%clk 0:00:26]} 56. Kf8 {[%clk 0:00:16]}  Nxf5 {[%clk 0:00:26]} 57. gxf5 {[%clk 0:00:16]}  Bh7 {[%clk 0:00:25]} 58. Kg7 {[%clk 0:00:16]}  Bxf5 {[%clk 0:00:24]} 59. Nxf5 {[%clk 0:00:17]} 1-0

[Event "December 5 Early 2023"]
[Site "https://www.chess.com"]
[Date "2023.12.05"]
[Round "3"]
[White "Rasulov, Vugar"]
[Black "Goryachkina, Aleksandra"]
[Result "1-0"]
[Board "27"]
[TimeControl "180+1"]
[WhiteFideId "13402390"]
[BlackFideId "4147103"]
[WhiteElo "2920"]
[BlackElo "2663"]
[WhiteTeam "AZE"]
[BlackTeam "FID"]
[WhiteClock "0:01:09"]
[BlackClock "0:00:00"]

1. e4 {[%clk 0:03:00]}  c5 {[%clk 0:02:59]} 2. Nf3 {[%clk 0:03:00]}  e6 {[%clk 0:02:59]} 3. d4 {[%clk 0:03:00]}  cxd4 {[%clk 0:02:59]} 4. Nxd4 {[%clk 0:03:01]}  Nc6 {[%clk 0:02:59]} 5. Nc3 {[%clk 0:03:00]}  Bc5 {[%clk 0:02:59]} 6. Nb3 {[%clk 0:02:57]}  Bb4 {[%clk 0:02:58]} 7. Bd3 {[%clk 0:02:56]}  Nge7 {[%clk 0:02:57]} 8. O-O {[%clk 0:02:56]}  O-O {[%clk 0:02:57]} 9. f4 {[%clk 0:02:55]}  d5 {[%clk 0:02:48]} 10. e5 {[%clk 0:02:54]}  Ng6 {[%clk 0:02:34]} 11. Ne2 {[%clk 0:02:41]}  f6 {[%clk 0:02:29]} 12. c3 {[%clk 0:02:32]}  Be7 {[%clk 0:02:24]} 13. exf6 {[%clk 0:02:33]}  Bxf6 {[%clk 0:02:22]} 14. Be3 {[%clk 0:02:26]}  Bd7 {[%clk 0:02:14]} 15. Nc5 {[%clk 0:02:25]}  Qc7 {[%clk 0:01:50]} 16. Bxg6 {[%clk 0:02:14]}  hxg6 {[%clk 0:01:49]} 17. Nd4 {[%clk 0:02:15]}  Nxd4 {[%clk 0:01:30]} 18. cxd4 {[%clk 0:02:14]}  b6 {[%clk 0:01:29]} 19. Nd3 {[%clk 0:02:09]}  Bb5 {[%clk 0:01:29]} 20. Rc1 {[%clk 0:02:08]}  Qf7 {[%clk 0:01:18]} 21. Rf2 {[%clk 0:02:08]}  Bxd3 {[%clk 0:01:16]} 22. Qxd3 {[%clk 0:02:09]}  Rac8 {[%clk 0:01:02]} 23. Rxc8 {[%clk 0:02:06]}  Rxc8 {[%clk 0:01:02]} 24. Rc2 {[%clk 0:02:07]}  Rxc2 {[%clk 0:00:56]} 25. Qxc2 {[%clk 0:02:07]}  Kh7 {[%clk 0:00:56]} 26. Qc6 {[%clk 0:02:05]}  Qe7 {[%clk 0:00:54]} 27. a3 {[%clk 0:02:04]}  Kg8 {[%clk 0:00:48]} 28. Kf2 {[%clk 0:01:59]}  Kf7 {[%clk 0:00:47]} 29. Kf3 {[%clk 0:02:00]}  Qd8 {[%clk 0:00:33]} 30. g4 {[%clk 0:01:58]}  Be7 {[%clk 0:00:31]} 31. Bf2 {[%clk 0:01:49]}  a5 {[%clk 0:00:16]} 32. a4 {[%clk 0:01:45]}  Qh8 {[%clk 0:00:11]} 33. Kg2 {[%clk 0:01:39]}  Qe8 {[%clk 0:00:05]} 34. Qxe8+ {[%clk 0:01:28]}  Kxe8 {[%clk 0:00:04]} 35. h4 {[%clk 0:01:29]}  Bf6 {[%clk 0:00:03]} 36. Kf3 {[%clk 0:01:29]}  Kd7 {[%clk 0:00:03]} 37. b3 {[%clk 0:01:28]}  Ke8 {[%clk 0:00:02]} 38. Be3 {[%clk 0:01:25]}  Kf7 {[%clk 0:00:02]} 39. Bf2 {[%clk 0:01:26]}  Ke8 {[%clk 0:00:03]} 40. h5 {[%clk 0:01:21]}  gxh5 {[%clk 0:00:03]} 41. gxh5 {[%clk 0:01:22]}  Kf7 {[%clk 0:00:03]} 42. Kg4 {[%clk 0:01:23]}  Be7 {[%clk 0:00:03]} 43. Bh4 {[%clk 0:01:14]}  Bb4 {[%clk 0:00:03]} 44. Bd8 {[%clk 0:01:13]}  Bc3 {[%clk 0:00:03]} 45. Bxb6 {[%clk 0:01:13]}  Bd2 {[%clk 0:00:03]} 46. f5 {[%clk 0:01:11]}  Bc3 {[%clk 0:00:02]} 47. Kf4 {[%clk 0:01:07]}  Bd2+ {[%clk 0:00:01]} 48. Ke5 {[%clk 0:01:08]}  exf5 {[%clk 0:00:01]} 49. Kxf5 {[%clk 0:01:09]}  Ke7 {[%clk 0:00:00]} 50. Ke5 {[%clk 0:01:09]} 1-0

[Event "December 5 Early 2023"]
[Site "https://www.chess.com"]
[Date "2023.12.05"]
[Round "3"]
[White "Shyam, Sundar M."]
[Black "Kovalenko, Igor"]
[Result "1/2-1/2"]
[Board "28"]
[TimeControl "180+1"]
[WhiteFideId "5019141"]
[BlackFideId "14117908"]
[WhiteElo "2662"]
[BlackElo "2919"]
[WhiteTeam "IND"]
[BlackTeam "UKR"]
[WhiteClock "0:00:18"]
[BlackClock "0:00:10"]

1. e4 {[%clk 0:02:53]}  d5 {[%clk 0:02:31]} 2. exd5 {[%clk 0:02:52]}  Qxd5 {[%clk 0:02:32]} 3. Nf3 {[%clk 0:02:49]}  Bg4 {[%clk 0:02:32]} 4. Be2 {[%clk 0:02:49]}  Nc6 {[%clk 0:02:32]} 5. O-O {[%clk 0:02:37]}  O-O-O {[%clk 0:02:30]} 6. Nc3 {[%clk 0:02:10]}  Qf5 {[%clk 0:02:26]} 7. d3 {[%clk 0:01:58]}  e6 {[%clk 0:02:18]} 8. Be3 {[%clk 0:01:54]}  Nf6 {[%clk 0:02:17]} 9. Nh4 {[%clk 0:01:51]}  Qh5 {[%clk 0:02:12]} 10. Bxg4 {[%clk 0:01:36]}  Nxg4 {[%clk 0:02:12]} 11. h3 {[%clk 0:01:36]}  Qxh4 {[%clk 0:02:08]} 12. Qxg4 {[%clk 0:01:36]}  Qe7 {[%clk 0:02:07]} 13. Qa4 {[%clk 0:01:35]}  Qb4 {[%clk 0:02:03]} 14. Qxb4 {[%clk 0:01:33]}  Bxb4 {[%clk 0:02:04]} 15. Ne4 {[%clk 0:01:32]}  h6 {[%clk 0:02:01]} 16. c3 {[%clk 0:01:33]}  Be7 {[%clk 0:02:01]} 17. d4 {[%clk 0:01:33]}  f5 {[%clk 0:02:00]} 18. Nd2 {[%clk 0:01:32]}  e5 {[%clk 0:01:57]} 19. dxe5 {[%clk 0:01:30]}  Nxe5 {[%clk 0:01:57]} 20. Nb3 {[%clk 0:01:29]}  Nc4 {[%clk 0:01:56]} 21. Bd4 {[%clk 0:01:26]}  Rhg8 {[%clk 0:01:54]} 22. Rfe1 {[%clk 0:01:24]}  Bd6 {[%clk 0:01:54]} 23. Re2 {[%clk 0:01:24]}  b6 {[%clk 0:01:52]} 24. f3 {[%clk 0:01:14]}  g5 {[%clk 0:01:48]} 25. Rae1 {[%clk 0:01:13]}  Kd7 {[%clk 0:01:39]} 26. Nc1 {[%clk 0:01:08]}  c5 {[%clk 0:01:33]} 27. Bf2 {[%clk 0:01:07]}  Rde8 {[%clk 0:01:33]} 28. Nd3 {[%clk 0:01:06]}  Rxe2 {[%clk 0:01:30]} 29. Rxe2 {[%clk 0:01:07]}  Re8 {[%clk 0:01:31]} 30. Rxe8 {[%clk 0:01:08]}  Kxe8 {[%clk 0:01:32]} 31. b3 {[%clk 0:01:09]}  Na3 {[%clk 0:01:31]} 32. c4 {[%clk 0:01:08]}  Kf7 {[%clk 0:01:25]} 33. Kf1 {[%clk 0:01:05]}  Ke6 {[%clk 0:01:25]} 34. Ke2 {[%clk 0:01:05]}  Kd7 {[%clk 0:00:52]} 35. Kd2 {[%clk 0:01:03]}  Kc6 {[%clk 0:00:53]} 36. g4 {[%clk 0:00:55]}  f4 {[%clk 0:00:52]} 37. Kc3 {[%clk 0:00:53]}  b5 {[%clk 0:00:50]} 38. Be1 {[%clk 0:00:44]}  a6 {[%clk 0:00:42]} 39. Bd2 {[%clk 0:00:43]}  b4+ {[%clk 0:00:34]} 40. Kb2 {[%clk 0:00:42]}  Bf8 {[%clk 0:00:32]} 41. Kc1 {[%clk 0:00:41]}  Bg7 {[%clk 0:00:32]} 42. Nf2 {[%clk 0:00:40]}  Bd4 {[%clk 0:00:28]} 43. Ne4 {[%clk 0:00:40]}  Kd7 {[%clk 0:00:20]} 44. Kd1 {[%clk 0:00:41]}  Ke6 {[%clk 0:00:19]} 45. Bc1 {[%clk 0:00:40]}  Nb1 {[%clk 0:00:18]} 46. Kc2 {[%clk 0:00:40]}  Nc3 {[%clk 0:00:19]} 47. Nxc3 {[%clk 0:00:39]}  Bxc3 {[%clk 0:00:19]} 48. Kd3 {[%clk 0:00:39]}  Ke5 {[%clk 0:00:19]} 49. a4 {[%clk 0:00:37]}  a5 {[%clk 0:00:19]} 50. Ke2 {[%clk 0:00:20]}  Kd4 {[%clk 0:00:20]} 51. Bd2 {[%clk 0:00:21]}  Bb2 {[%clk 0:00:17]} 52. Be1 {[%clk 0:00:21]}  Bc1 {[%clk 0:00:18]} 53. Kd1 {[%clk 0:00:20]}  Bb2 {[%clk 0:00:12]} 54. Ke2 {[%clk 0:00:20]}  Bc1 {[%clk 0:00:11]} 55. Bd2 {[%clk 0:00:18]}  Ba3 {[%clk 0:00:09]} 56. Be1 {[%clk 0:00:17]}  Bb2 {[%clk 0:00:10]} 57. Bd2 {[%clk 0:00:17]}  Bc3 {[%clk 0:00:09]} 58. Bc1 {[%clk 0:00:18]}  Ba1 {[%clk 0:00:09]} 59. Bd2 {[%clk 0:00:18]}  Bb2 {[%clk 0:00:10]} 60. Be1 {[%clk 0:00:18]} 1/2-1/2

[Event "December 5 Early 2023"]
[Site "https://www.chess.com"]
[Date "2023.12.05"]
[Round "3"]
[White "Vokhidov, Shamsiddin"]
[Black "Vlassov, Nikolai"]
[Result "1-0"]
[Board "29"]
[TimeControl "180+1"]
[WhiteFideId "14204223"]
[BlackFideId "4103360"]
[WhiteElo "2918"]
[BlackElo "2661"]
[WhiteTeam "UZB"]
[BlackTeam "FID"]
[WhiteClock "0:01:39"]
[BlackClock "0:00:08"]

1. e4 {[%clk 0:03:00]}  Nc6 {[%clk 0:02:59]} 2. Nf3 {[%clk 0:03:00]}  d5 {[%clk 0:02:55]} 3. exd5 {[%clk 0:02:58]}  Qxd5 {[%clk 0:02:55]} 4. Nc3 {[%clk 0:02:59]}  Qa5 {[%clk 0:02:55]} 5. d4 {[%clk 0:03:00]}  Bg4 {[%clk 0:02:54]} 6. Bb5 {[%clk 0:03:00]}  O-O-O {[%clk 0:02:54]} 7. Bxc6 {[%clk 0:03:00]}  bxc6 {[%clk 0:02:55]} 8. h3 {[%clk 0:02:57]}  Qh5 {[%clk 0:02:54]} 9. Qe2 {[%clk 0:02:56]}  Bxf3 {[%clk 0:02:53]} 10. gxf3 {[%clk 0:02:57]}  e6 {[%clk 0:02:51]} 11. Be3 {[%clk 0:02:55]}  Bb4 {[%clk 0:02:49]} 12. Rg1 {[%clk 0:02:34]}  Qxh3 {[%clk 0:02:24]} 13. O-O-O {[%clk 0:02:15]}  Bxc3 {[%clk 0:02:23]} 14. bxc3 {[%clk 0:02:16]}  Ne7 {[%clk 0:02:13]} 15. Rxg7 {[%clk 0:02:13]}  Qf5 {[%clk 0:02:02]} 16. Rg5 {[%clk 0:02:01]}  Qf6 {[%clk 0:02:02]} 17. Ra5 {[%clk 0:01:59]}  Nd5 {[%clk 0:01:37]} 18. Rxa7 {[%clk 0:01:58]}  Nxc3 {[%clk 0:01:27]} 19. Qc4 {[%clk 0:01:52]}  Nb5 {[%clk 0:01:14]} 20. Ra6 {[%clk 0:01:49]}  Rd6 {[%clk 0:00:49]} 21. a4 {[%clk 0:01:43]}  Qxf3 {[%clk 0:00:22]} 22. Ra8+ {[%clk 0:01:38]}  Kd7 {[%clk 0:00:08]} 23. Rxh8 {[%clk 0:01:39]} 1-0